bitfinex-derivatives/quotes_BTCF0:USTF0_20250528
["timestamp","ask_amount","ask_price","bid_price","bid_amount"]
[1748460901281,1.0738016,107510.0,107500.0,0.62226717]
[1748460901490,1.0738016,107510.0,107500.0,0.39666674]
[1748460901782,1.62740203,107510.0,107500.0,0.40814439]
[1748460901975,1.67740203,107510.0,107500.0,0.24920682]
[1748460902175,1.67740203,107510.0,107500.0,0.06320752]
[1748460902384,1.67740203,107510.0,107500.0,0.24908752]
[1748460902582,1.67740203,107510.0,107500.0,0.24920832]
[1748460902784,1.67740203,107510.0,107500.0,0.24920828]
[1748460902986,1.67740203,107510.0,107500.0,0.23454924]
[1748460903185,1.67740203,107510.0,107500.0,0.23466924]
[1748460903681,1.67740203,107510.0,107500.0,0.24920826]
[1748460904491,1.67740203,107510.0,107500.0,0.24920829]
[1748460904887,1.79297797,107510.0,107500.0,0.24920829]
[1748460905088,1.79297797,107510.0,107500.0,0.23466924]
[1748460905279,1.79297797,107510.0,107500.0,0.24920828]
[1748460905474,1.79297797,107510.0,107500.0,0.20796459]
[1748460905991,1.79297797,107510.0,107500.0,0.00730555]
[1748460906180,1.9380958,107510.0,107500.0,0.00742555]
[1748460906494,1.9381501,107510.0,107500.0,0.02184572]
[1748460906683,1.82251986,107510.0,107500.0,0.01745067]
[1748460906881,0.0465014,107500.0,107470.0,0.49801954]
[1748460907088,0.37883493,107480.0,107470.0,0.7788308]
[1748460907288,0.5360345,107480.0,107470.0,0.7788308]
[1748460907483,0.9590345,107480.0,107470.0,0.72079908]
[1748460907980,0.9590345,107480.0,107470.0,0.72279908]
[1748460908184,0.9590345,107480.0,107470.0,0.72291908]
[1748460908586,0.9590345,107480.0,107470.0,0.72091908]
[1748460908785,0.9590345,107480.0,107470.0,0.72591908]
[1748460909389,0.9590345,107480.0,107470.0,0.72991908]
[1748460909993,0.9590345,107480.0,107470.0,0.7288085]
[1748460910493,0.9590345,107480.0,107470.0,0.68528914]
[1748460910689,0.5982345,107480.0,107470.0,0.7238085]
[1748460910990,0.5982345,107480.0,107470.0,0.7268085]
[1748460911194,0.5982345,107480.0,107470.0,0.7600085]
[1748460911688,0.94492,107480.0,107470.0,1.31360893]
[1748460913686,0.94492,107480.0,107470.0,1.27008957]
[1748460914190,0.94492,107480.0,107470.0,1.22880623]
[1748460914391,0.94492,107480.0,107470.0,1.27005987]
[1748460914795,0.94492,107480.0,107470.0,1.24005987]
[1748460915996,1.1309545,107480.0,107470.0,1.24005987]
[1748460916393,1.1309545,107480.0,107470.0,1.20655987]
[1748460916690,1.1309545,107480.0,107470.0,1.01375944]
[1748460916896,1.1309545,107480.0,107470.0,1.01363944]
[1748460917094,1.1309545,107480.0,107470.0,0.84563987]
[1748460917395,1.1309545,107480.0,107470.0,1.25004795]
[1748460917396,0.94492,107480.0,107470.0,1.25004795]
[1748460917600,0.94492,107480.0,107470.0,1.28254795]
[1748460917896,0.94492,107480.0,107470.0,0.92174795]
[1748460918097,0.94492,107480.0,107470.0,0.95444795]
[1748460918499,0.94492,107480.0,107470.0,0.95443076]
[1748460918888,0.94492,107480.0,107470.0,0.96879968]
[1748460919093,0.94496,107480.0,107470.0,0.96879968]
[1748460919488,0.94496,107480.0,107470.0,0.96880048]
[1748460919888,0.94496,107480.0,107470.0,0.97331603]
[1748460920100,0.94496,107480.0,107470.0,0.97331608]
[1748460920300,0.94496,107480.0,107470.0,0.97331616]
[1748460920594,0.94496,107480.0,107470.0,0.95894631]
[1748460920795,0.94496,107480.0,107470.0,0.97331609]
[1748460920997,1.1309946,107480.0,107470.0,0.97331609]
[1748460921700,1.1309946,107480.0,107470.0,0.95894631]
[1748460921896,1.1309946,107480.0,107470.0,0.78051653]
[1748460922089,1.1309946,107480.0,107470.0,0.95894631]
[1748460922398,1.1309946,107480.0,107470.0,0.91546705]
[1748460922694,1.1309946,107480.0,107470.0,0.92983826]
[1748460922901,1.4917946,107480.0,107470.0,0.92984416]
[1748460923299,1.4917946,107480.0,107470.0,0.92984453]
[1748460923495,1.4917946,107480.0,107470.0,0.91547172]
[1748460923692,1.4917946,107480.0,107470.0,0.75984608]
[1748460923890,1.4917946,107480.0,107470.0,0.75984611]
[1748460924393,1.4917946,107480.0,107470.0,0.75984651]
[1748460925397,1.4917946,107480.0,107470.0,0.75984697]
[1748460925788,1.4917946,107480.0,107470.0,0.74547172]
[1748460925989,1.4917946,107480.0,107470.0,0.75984914]
[1748460926190,1.4917946,107480.0,107470.0,0.75984948]
[1748460926394,1.4917946,107480.0,107470.0,0.74547172]
[1748460926999,1.5248946,107480.0,107470.0,0.75984948]
[1748460927298,1.5248946,107480.0,107470.0,0.75986309]
[1748460927902,1.5248946,107480.0,107470.0,0.75986318]
[1748460928496,1.5248946,107480.0,107470.0,0.74548533]
[1748460929600,1.5248946,107480.0,107470.0,0.75986677]
[1748460930101,1.5248946,107480.0,107470.0,0.56707051]
[1748460930503,1.5248946,107480.0,107470.0,0.56707078]
[1748460930903,1.5248946,107480.0,107470.0,0.56707673]
[1748460931090,1.5248946,107480.0,107470.0,0.5526849]
[1748460931605,1.71769503,107480.0,107470.0,0.45244785]
[1748460931805,1.76769503,107480.0,107470.0,0.43793571]
[1748460932105,1.5748946,107480.0,107470.0,0.40890006]
[1748460932499,1.5748946,107480.0,107470.0,0.45244809]
[1748460933106,1.5748946,107480.0,107470.0,0.34244809]
[1748460933902,1.5748946,107480.0,107470.0,0.32805571]
[1748460934108,1.5748946,107480.0,107470.0,0.34245165]
[1748460934300,1.5748946,107480.0,107470.0,0.29890844]
[1748460934494,1.5748946,107480.0,107470.0,0.34245634]
[1748460934701,1.5748946,107480.0,107470.0,0.32805571]
[1748460934904,1.5748946,107480.0,107470.0,0.34245635]
[1748460935503,1.5748946,107480.0,107470.0,0.33946394]
[1748460935709,1.5748946,107480.0,107470.0,0.34146394]
[1748460935896,1.5748946,107480.0,107470.0,0.34156094]
[1748460936297,1.5748946,107480.0,107470.0,0.34156057]
[1748460936601,1.5748946,107480.0,107470.0,0.34056057]
[1748460936904,1.5748946,107480.0,107470.0,0.34066761]
[1748460937594,1.5748946,107480.0,107470.0,0.282555]
[1748460937795,1.5748946,107480.0,107470.0,0.29706861]
[1748460938399,1.5748946,107480.0,107470.0,0.29706843]
[1748460938598,1.5748946,107480.0,107470.0,0.282555]
[1748460938798,1.5748946,107480.0,107470.0,0.29706754]
[1748460939001,1.5748946,107480.0,107470.0,0.25055734]
[1748460939802,1.5748946,107480.0,107470.0,0.25055978]
[1748460939997,1.5748946,107480.0,107470.0,0.06450798]
[1748460940198,1.88332163,107480.0,107470.0,0.06450803]
[1748460940499,1.76769503,107480.0,107470.0,0.02303058]
[1748460940805,1.88332163,107480.0,107470.0,0.02303058]
[1748460941198,1.88332163,107480.0,107470.0,0.02314567]
[1748460941398,1.88332163,107480.0,107470.0,0.20919536]
[1748460941794,1.76769503,107480.0,107470.0,0.20919536]
[1748460942001,1.76769503,107480.0,107470.0,0.02314106]
[1748460942201,1.23493503,107480.0,107470.0,0.02314106]
[1748460942401,1.76753503,107480.0,107470.0,0.20919526]
[1748460942802,1.76753503,107480.0,107470.0,0.20919523]
[1748460943411,1.76753503,107480.0,107470.0,0.20919227]
[1748460943709,1.76753503,107480.0,107470.0,0.20919231]
[1748460943904,1.76753503,107480.0,107470.0,0.20919214]
[1748460944305,1.76753503,107480.0,107470.0,0.02313794]
[1748460944706,1.76753503,107480.0,107470.0,0.02313613]
[1748460945211,2.27948226,107480.0,107450.0,0.04359771]
[1748460945398,0.1861061,107440.0,107430.0,0.18867701]
[1748460945700,1.72676764,107440.0,107430.0,0.01314398]
[1748460945902,2.24589794,107440.0,107430.0,0.01314398]
[1748460946104,2.36136328,107440.0,107430.0,0.01326398]
[1748460946305,2.36136328,107440.0,107430.0,0.01342275]
[1748460946506,1.5442059,107440.0,107430.0,0.39234658]
[1748460946705,1.9752059,107440.0,107430.0,0.20543105]
[1748460946911,2.16800633,107440.0,107430.0,0.20544568]
[1748460947217,2.1820876,107440.0,107430.0,0.01934104]
[1748460947407,2.1820876,107440.0,107430.0,0.20534444]
[1748460947607,2.1820876,107440.0,107430.0,0.01935568]
[1748460947913,2.1840876,107440.0,107430.0,0.20546361]
[1748460948105,2.1840876,107440.0,107430.0,0.19946361]
[1748460948304,2.2192876,107440.0,107430.0,0.19946361]
[1748460948506,2.2192876,107440.0,107430.0,0.19946741]
[1748460948812,2.2192876,107440.0,107430.0,0.19946594]
[1748460949013,2.2192876,107440.0,107430.0,0.1862434]
[1748460949205,2.2192876,107440.0,107430.0,0.01335029]
[1748460949407,2.2192876,107440.0,107430.0,0.01335942]
[1748460949905,1.7882876,107440.0,107430.0,0.19948292]
[1748460950207,2.2193276,107440.0,107430.0,0.19948292]
[1748460950407,2.02652717,107440.0,107430.0,0.19946289]
[1748460950610,2.2193276,107440.0,107430.0,0.19943521]
[1748460950802,2.2193276,107440.0,107430.0,0.19943974]
[1748460951112,2.2193276,107440.0,107430.0,0.23082569]
[1748460951513,2.2193276,107440.0,107430.0,0.2308506]
[1748460951700,2.2193276,107440.0,107430.0,0.23085065]
[1748460952320,2.2193276,107440.0,107430.0,0.23083782]
[1748460952612,2.2193276,107440.0,107430.0,0.23082911]
[1748460953309,2.2193276,107440.0,107430.0,0.19940293]
[1748460953520,2.2193276,107440.0,107430.0,0.01327943]
[1748460954016,0.2361234,107430.0,107420.0,0.1889308]
[1748460954209,1.18582383,107430.0,107420.0,0.1889308]
[1748460954397,1.18582383,107430.0,107420.0,0.20222157]
[1748460954598,1.18582383,107430.0,107420.0,0.20223169]
[1748460955002,1.18582383,107430.0,107420.0,0.20222775]
[1748460955408,1.18582383,107430.0,107420.0,0.20221655]
[1748460955409,1.18682383,107430.0,107420.0,0.20221655]
[1748460956014,1.18782383,107430.0,107420.0,0.20221655]
[1748460957213,1.18782383,107430.0,107420.0,0.21645299]
[1748460957510,1.18782383,107430.0,107420.0,0.21644879]
[1748460957713,1.18782383,107430.0,107420.0,0.2031734]
[1748460957911,1.18782383,107430.0,107420.0,0.21645546]
[1748460958214,1.18782383,107430.0,107420.0,0.21646317]
[1748460958807,1.18782383,107430.0,107420.0,0.20317344]
[1748460959019,1.18782383,107430.0,107420.0,0.21646115]
[1748460959217,1.18782383,107430.0,107420.0,0.216451]
[1748460959410,1.18782383,107430.0,107420.0,0.03031612]
[1748460959612,1.18782383,107430.0,107420.0,0.2164565]
[1748460959813,1.18782383,107430.0,107420.0,0.21649463]
[1748460960317,1.18782383,107430.0,107420.0,0.21650758]
[1748460960513,1.18782383,107430.0,107420.0,0.03036678]
[1748460960714,2.43650426,107430.0,107420.0,8e-08]
[1748460961115,2.43650426,107430.0,107400.0,0.28567234]
[1748460961116,0.1861581,107410.0,107400.0,0.28567234]
[1748460961315,1.64751105,107410.0,107400.0,0.09899388]
[1748460961517,2.26421148,107410.0,107380.0,0.0311]
[1748460961823,0.1862274,107370.0,107360.0,0.3115508]
[1748460962012,0.1862274,107370.0,107360.0,0.3498508]
[1748460962013,1.03994504,107370.0,107360.0,0.3498508]
[1748460962213,1.10304504,107370.0,107360.0,0.3800508]
[1748460962511,0.92640306,107370.0,107360.0,0.5600508]
[1748460962713,1.11226512,107370.0,107360.0,0.4367306]
[1748460962909,1.66586555,107370.0,107360.0,0.22]
[1748460963216,0.2362446,107360.0,107350.0,0.1890519]
[1748460963410,1.21514809,107360.0,107350.0,0.1890519]
[1748460963605,1.21514809,107360.0,107350.0,0.00279]
[1748460964012,1.21514809,107360.0,107350.0,0.00291]
[1748460964215,1.21514809,107360.0,107350.0,0.00279]
[1748460964422,1.21514809,107360.0,107350.0,0.00291]
[1748460964616,1.75214809,107360.0,107350.0,0.1890519]
[1748460964811,1.75214809,107360.0,107300.0,0.25046]
[1748460964812,0.05,107350.0,107300.0,0.25046]
[1748460965014,0.9579314,107310.0,107300.0,0.88864777]
[1748460965212,0.9579314,107310.0,107300.0,0.84743382]
[1748460965213,1.49906582,107310.0,107300.0,0.84743382]
[1748460965420,1.51318509,107310.0,107300.0,0.84743382]
[1748460965630,0.73696815,107310.0,107300.0,1.19062582]
[1748460965809,0.73696815,107310.0,107300.0,1.7291328]
[1748460965810,0.01536815,107310.0,107300.0,1.7291328]
[1748460966013,0.00124888,107310.0,107300.0,2.11473366]
[1748460966210,0.3608,107340.0,107310.0,0.0465817]
[1748460966410,0.3608,107340.0,107330.0,0.37909693]
[1748460966411,0.73042709,107340.0,107330.0,0.37909693]
[1748460966612,0.73042709,107340.0,107330.0,0.64909693]
[1748460966822,0.98378629,107340.0,107330.0,0.74226493]
[1748460967021,0.98378629,107340.0,107330.0,0.99263784]
[1748460967022,0.36042709,107340.0,107330.0,0.99263784]
[1748460967224,0.79770709,107340.0,107330.0,0.74263784]
[1748460967427,0.80070709,107340.0,107330.0,0.74263784]
[1748460967721,0.80074709,107340.0,107330.0,0.74263784]
[1748460967926,0.80074709,107340.0,107330.0,0.66855386]
[1748460968312,0.34000639,107340.0,107330.0,2.16855386]
[1748460968623,0.78140639,107340.0,107330.0,2.59172186]
[1748460968826,0.77840639,107340.0,107330.0,2.59172186]
[1748460969023,0.36233826,107350.0,107330.0,2.40542536]
[1748460969228,0.37233826,107350.0,107340.0,0.39616355]
[1748460969426,0.58233826,107350.0,107340.0,0.79653646]
[1748460969723,0.54653906,107350.0,107340.0,1.12969246]
[1748460969926,0.22013952,107350.0,107340.0,1.18759246]
[1748460970127,0.79812,107360.0,107350.0,0.1862618]
[1748460970324,0.81812,107360.0,107350.0,0.69864625]
[1748460970514,0.81816,107360.0,107350.0,0.79116716]
[1748460971519,0.81804,107360.0,107350.0,0.79116716]
[1748460971730,0.81804,107360.0,107350.0,0.57928271]
[1748460971932,0.80895707,107360.0,107350.0,0.79116716]
[1748460972128,0.80995707,107360.0,107350.0,0.79116716]
[1748460972527,0.81195707,107360.0,107350.0,0.79116716]
[1748460972742,1.07195707,107360.0,107350.0,0.71218238]
[1748460972943,1.10315707,107360.0,107350.0,0.71230238]
[1748460973132,1.10315707,107360.0,107350.0,0.72565986]
[1748460973335,1.28940147,107360.0,107350.0,0.72565986]
[1748460973536,1.32140147,107360.0,107350.0,0.50041793]
[1748460973733,1.35380147,107360.0,107350.0,0.51379104]
[1748460973929,1.35380147,107360.0,107350.0,1.98317104]
[1748460973930,1.40380147,107360.0,107350.0,1.98317104]
[1748460974129,1.40380147,107360.0,107350.0,1.98329104]
[1748460975040,1.40380147,107360.0,107350.0,1.98343821]
[1748460975232,1.40380147,107360.0,107350.0,1.98346368]
[1748460975634,1.40387882,107360.0,107350.0,1.98346998]
[1748460975834,1.40390575,107360.0,107350.0,2.01547002]
[1748460976034,1.403903,107360.0,107350.0,2.01547002]
[1748460976244,1.39774546,107360.0,107350.0,2.00127908]
[1748460976442,1.39774546,107360.0,107350.0,2.0154708]
[1748460976746,1.39774546,107360.0,107350.0,2.01548385]
[1748460977151,1.39774546,107360.0,107350.0,0.72731738]
[1748460977348,1.39774546,107360.0,107350.0,0.76010972]
[1748460977349,0.72426106,107360.0,107350.0,0.76010972]
[1748460977650,0.80546106,107360.0,107350.0,0.80055156]
[1748460977834,0.80546106,107360.0,107350.0,0.78635963]
[1748460978034,0.80546106,107360.0,107350.0,0.58866831]
[1748460978242,0.80546106,107360.0,107350.0,0.80055276]
[1748460978444,0.80546106,107360.0,107350.0,0.80045733]
[1748460978945,0.80546106,107360.0,107350.0,0.80045934]
[1748460979539,0.78546106,107360.0,107350.0,0.78715253]
[1748460979739,0.78546106,107360.0,107350.0,0.80048483]
[1748460979937,0.78556534,107360.0,107350.0,0.80500038]
[1748460980141,0.78546106,107360.0,107350.0,0.80500038]
[1748460980340,0.78546106,107360.0,107350.0,0.77747299]
[1748460980641,0.78534106,107360.0,107350.0,0.76448142]
[1748460980842,0.78534106,107360.0,107350.0,0.80500039]
[1748460981041,0.78554106,107360.0,107350.0,0.80497929]
[1748460981235,0.78554106,107360.0,107350.0,0.80498209]
[1748460981440,0.34866106,107360.0,107350.0,0.89813008]
[1748460981636,0.7855697,107360.0,107350.0,0.89813008]
[1748460981844,0.78550106,107360.0,107350.0,0.89807751]
[1748460982051,0.77641854,107360.0,107350.0,0.8980659]
[1748460982341,0.77641854,107360.0,107350.0,0.67297041]
[1748460982542,0.77641854,107360.0,107350.0,0.89809249]
[1748460982749,0.77641854,107360.0,107350.0,0.89807815]
[1748460983254,0.77641854,107360.0,107350.0,0.89797005]
[1748460983735,0.77641854,107360.0,107350.0,0.6860856]
[1748460983940,0.77641854,107360.0,107350.0,0.8837747]
[1748460984237,0.33957854,107360.0,107350.0,0.89799168]
[1748460984442,0.77673854,107360.0,107350.0,0.89799168]
[1748460984747,0.96298294,107360.0,107350.0,0.88486832]
[1748460984955,0.99328294,107360.0,107350.0,0.8047768]
[1748460985135,1.02428294,107360.0,107350.0,0.59305018]
[1748460985342,1.02428294,107360.0,107350.0,0.80494856]
[1748460985540,1.02428294,107360.0,107350.0,0.80499755]
[1748460985848,1.29428294,107360.0,107350.0,0.77222097]
[1748460986048,1.29428294,107360.0,107350.0,0.77212515]
[1748460986348,1.29438402,107360.0,107350.0,0.80513573]
[1748460986547,0.67087854,107360.0,107350.0,0.77225573]
[1748460986749,0.40087854,107360.0,107350.0,0.5933328]
[1748460986947,0.83787854,107360.0,107350.0,0.80521703]
[1748460987248,0.80691854,107360.0,107350.0,0.80517313]
[1748460987455,0.80691854,107360.0,107350.0,0.80516703]
[1748460987641,0.80691854,107360.0,107350.0,0.80516839]
[1748460987948,0.83941854,107360.0,107350.0,0.80516839]
[1748460988256,0.83941854,107360.0,107350.0,0.80517847]
[1748460988456,0.82428026,107360.0,107350.0,0.80517847]
[1748460988754,0.82428026,107360.0,107350.0,0.8052012]
[1748460988948,0.0658,107360.0,107350.0,0.80533169]
[1748460989153,0.0658,107360.0,107350.0,1.10535967]
[1748460989154,0.003,107360.0,107350.0,1.10535967]
[1748460989449,0.003,107360.0,107350.0,1.40430708]
[1748460989647,0.003,107360.0,107350.0,1.04350708]
[1748460989837,0.066,107360.0,107350.0,1.04350708]
[1748460990041,0.4268,107360.0,107350.0,0.83162263]
[1748460990243,0.4268,107360.0,107350.0,2.54335475]
[1748460990858,0.4268,107360.0,107350.0,0.40109931]
[1748460990859,0.6100442,107360.0,107350.0,0.40109931]
[1748460991157,1.19192865,107360.0,107350.0,0.30949754]
[1748460991356,1.02398799,107360.0,107350.0,0.30937754]
[1748460991549,1.02398799,107360.0,107350.0,0.30945668]
[1748460991846,1.02398799,107360.0,107350.0,0.3094567]
[1748460992052,1.01490373,107360.0,107350.0,0.30956853]
[1748460992246,1.01490373,107360.0,107350.0,0.30925666]
[1748460992445,1.01490373,107360.0,107350.0,0.29497552]
[1748460992649,1.01490373,107360.0,107350.0,0.26853065]
[1748460992850,1.01490373,107360.0,107350.0,0.30915889]
[1748460993154,1.01490373,107360.0,107350.0,0.30927887]
[1748460993352,1.01490373,107360.0,107350.0,0.28189777]
[1748460993557,1.22678818,107360.0,107350.0,0.30900328]
[1748460993757,1.01490373,107360.0,107350.0,0.30899602]
[1748460994140,1.22678818,107360.0,107350.0,0.0600152]
[1748460994347,1.22729124,107360.0,107350.0,0.23199777]
[1748460994644,1.01540679,107360.0,107350.0,0.06001567]
[1748460994841,1.22729124,107360.0,107350.0,0.20552936]
[1748460995040,1.22729124,107360.0,107350.0,0.20552972]
[1748460995246,1.22729124,107360.0,107350.0,0.06450269]
[1748460995450,1.01540679,107360.0,107350.0,0.2086159]
[1748460995647,1.01540679,107360.0,107350.0,0.222909]
[1748460995956,1.01540679,107360.0,107350.0,0.22292069]
[1748460996159,1.01540679,107360.0,107350.0,0.22291864]
[1748460996364,1.01540679,107360.0,107350.0,0.26353572]
[1748460996549,1.01540679,107360.0,107350.0,0.23650259]
[1748460996751,1.01540679,107360.0,107350.0,0.25079926]
[1748460997060,1.01540679,107360.0,107350.0,0.26581087]
[1748460997445,1.22729124,107360.0,107350.0,0.07954937]
[1748460997651,1.22729124,107360.0,107350.0,0.26581087]
[1748460997853,1.22729124,107360.0,107350.0,0.26569087]
[1748460998050,1.22729124,107360.0,107350.0,0.26581087]
[1748460998256,1.62408679,107360.0,107350.0,0.25151413]
[1748460998554,1.83597124,107360.0,107350.0,0.26581027]
[1748460998754,1.9219044,107360.0,107350.0,0.27851196]
[1748460999065,1.71001995,107360.0,107350.0,0.27851196]
[1748460999256,1.71001995,107360.0,107350.0,0.22519192]
[1748460999451,1.71001995,107360.0,107350.0,0.23831756]
[1748460999953,1.71010583,107360.0,107350.0,0.23829387]
[1748461000256,1.71001995,107360.0,107350.0,0.03776741]
[1748461000460,1.9219044,107360.0,107350.0,0.05203659]
[1748461000758,1.9219044,107360.0,107350.0,0.03778732]
[1748461000959,1.9219044,107360.0,107350.0,0.05193459]
[1748461001272,1.9219044,107360.0,107350.0,0.03779127]
[1748461001569,1.9219044,107360.0,107350.0,0.05205908]
[1748461002149,1.9219044,107360.0,107350.0,0.23834226]
[1748461002351,1.71001995,107360.0,107350.0,0.23834226]
[1748461002756,1.71001995,107360.0,107350.0,0.23832241]
[1748461002956,1.71001995,107360.0,107350.0,0.2240563]
[1748461002957,1.22877995,107360.0,107350.0,0.2240563]
[1748461003163,1.71161995,107360.0,107350.0,0.23829671]
[1748461003361,1.71161995,107360.0,107350.0,0.21126986]
[1748461003558,1.71161995,107360.0,107350.0,0.23829401]
[1748461003954,1.71161995,107360.0,107350.0,0.23828869]
[1748461004154,1.71161995,107360.0,107350.0,0.23828462]
[1748461004463,1.71161995,107360.0,107350.0,0.23827505]
[1748461004659,1.9235044,107360.0,107350.0,0.2382744]
[1748461004851,1.92360043,107360.0,107350.0,0.23829436]
[1748461005057,1.92359117,107360.0,107350.0,0.23829436]
[1748461005260,1.9235044,107360.0,107350.0,0.23827902]
[1748461005658,1.71172423,107360.0,107350.0,0.23827902]
[1748461005964,1.71161995,107360.0,107350.0,0.21126986]
[1748461006167,1.71161995,107360.0,107350.0,0.23828137]
[1748461006461,1.71005995,107360.0,107350.0,0.3582859]
[1748461006664,1.71005995,107360.0,107350.0,0.34552673]
[1748461006964,1.71005995,107360.0,107350.0,0.34552526]
[1748461007358,1.14284679,107360.0,107350.0,0.34552526]
[1748461007563,0.45916259,107360.0,107350.0,0.62932138]
[1748461007767,0.39380306,107360.0,107350.0,0.6293193]
[1748461008064,0.36130306,107360.0,107350.0,0.7205508]
[1748461008265,0.36130306,107360.0,107350.0,0.68003898]
[1748461008462,0.39450306,107360.0,107350.0,0.72054418]
[1748461008662,0.39450306,107360.0,107350.0,0.50865973]
[1748461008861,0.61114706,107360.0,107350.0,0.68003882]
[1748461009159,0.61114706,107360.0,107350.0,0.45062794]
[1748461009364,0.42490306,107360.0,107350.0,0.66251245]
[1748461010269,0.42490306,107360.0,107350.0,0.66251213]
[1748461010766,0.42499237,107360.0,107350.0,0.66530213]
[1748461010970,0.42498739,107360.0,107350.0,0.6510496]
[1748461011267,0.42490306,107360.0,107350.0,0.66530232]
[1748461011469,0.42490306,107360.0,107350.0,0.66530273]
[1748461011857,0.36130306,107360.0,107350.0,0.66530273]
[1748461012058,0.36130306,107360.0,107350.0,0.72333445]
[1748461012254,0.39370306,107360.0,107350.0,0.72333445]
[1748461012463,0.42680306,107360.0,107350.0,0.66530273]
[1748461012657,0.61304726,107360.0,107350.0,0.66530273]
[1748461013259,0.42680306,107360.0,107350.0,0.66529287]
[1748461013463,0.42680306,107360.0,107350.0,0.43915529]
[1748461013658,0.61304726,107360.0,107350.0,0.66529375]
[1748461013860,0.42680306,107360.0,107350.0,0.66529375]
[1748461014165,0.61304726,107360.0,107350.0,0.66529375]
[1748461014356,0.61304726,107360.0,107350.0,0.42008929]
[1748461014557,0.61304726,107360.0,107350.0,0.42021046]
[1748461014765,0.61304726,107360.0,107350.0,0.42021061]
[1748461015368,0.61304726,107360.0,107350.0,0.66309503]
[1748461015661,1.09412726,107360.0,107350.0,0.66309503]
[1748461015968,1.09412726,107360.0,107350.0,0.64883974]
[1748461016160,1.09412726,107360.0,107350.0,0.66309501]
[1748461016465,0.42680306,107360.0,107350.0,0.66309501]
[1748461016664,0.90756306,107360.0,107350.0,0.66309501]
[1748461016865,1.09391154,107360.0,107350.0,0.66309501]
[1748461017056,0.90766734,107360.0,107350.0,0.64883974]
[1748461017253,0.90756306,107360.0,107350.0,0.64884399]
[1748461017457,0.90736306,107360.0,107350.0,0.66309905]
[1748461017654,1.09360726,107360.0,107350.0,0.4512146]
[1748461017857,1.45360726,107360.0,107350.0,0.4200948]
[1748461018065,1.45360726,107360.0,107350.0,0.4202148]
[1748461018370,1.45360726,107360.0,107350.0,0.42009909]
[1748461018557,1.45360726,107360.0,107350.0,0.38881999]
[1748461018760,1.45360726,107360.0,107350.0,0.34832031]
[1748461018761,1.50360726,107360.0,107350.0,0.34832031]
[1748461018958,1.50360726,107360.0,107350.0,0.34820031]
[1748461019159,1.50360726,107360.0,107350.0,0.34832031]
[1748461019572,1.80142487,107360.0,107350.0,0.34832031]
[1748461019958,1.80142487,107360.0,107350.0,0.3483237]
[1748461020270,1.80142487,107360.0,107350.0,0.1620621]
[1748461020453,1.80142487,107360.0,107350.0,0.1619421]
[1748461020658,1.79233989,107360.0,107350.0,0.17480185]
[1748461021364,1.79233989,107360.0,107350.0,0.16206429]
[1748461021767,1.79243755,107360.0,107350.0,0.1620653]
[1748461021956,1.79242254,107360.0,107350.0,0.1620653]
[1748461022163,1.90788503,107360.0,107350.0,0.1620653]
[1748461022461,1.90780523,107360.0,107350.0,0.1620653]
[1748461022858,2.12690452,107360.0,107350.0,0.03472289]
[1748461023059,0.1862616,107350.0,107340.0,0.00013952]
[1748461023282,0.1862963,107330.0,107320.0,0.0329]
[1748461023455,0.1862963,107330.0,107310.0,0.3100782]
[1748461023456,0.1863136,107320.0,107310.0,0.3123782]
[1748461023661,0.9223136,107320.0,107310.0,0.50964912]
[1748461023872,0.9723136,107320.0,107310.0,0.50964912]
[1748461024073,0.9723136,107320.0,107310.0,0.50976912]
[1748461024376,0.9723136,107320.0,107310.0,0.4693362]
[1748461024664,0.9723136,107320.0,107310.0,0.1864509]
[1748461024665,1.18419805,107320.0,107310.0,0.1864509]
[1748461024876,0.9723136,107320.0,107310.0,0.2064509]
[1748461025255,0.9723136,107320.0,107310.0,0.2114509]
[1748461025459,0.9723136,107320.0,107310.0,0.2113309]
[1748461025758,0.9723136,107320.0,107310.0,0.2114509]
[1748461025965,0.9723136,107320.0,107310.0,0.2164509]
[1748461026567,0.9723136,107320.0,107310.0,0.2114509]
[1748461026769,0.9723136,107320.0,107310.0,0.2064509]
[1748461027168,0.96625493,107320.0,107310.0,0.2064509]
[1748461027884,0.96625493,107320.0,107310.0,0.2063309]
[1748461028062,0.96625493,107320.0,107310.0,0.2064509]
[1748461028470,1.39010024,107320.0,107310.0,1e-07]
[1748461028667,0.3608,107300.0,107270.0,0.04352764]
[1748461028860,0.7716,107280.0,107270.0,0.63541569]
[1748461029062,0.7716,107280.0,107270.0,0.81479305]
[1748461029063,1.1416,107280.0,107270.0,0.81479305]
[1748461029263,1.1416,107280.0,107270.0,0.85515707]
[1748461029264,0.4108,107280.0,107270.0,0.85515707]
[1748461029467,0.47785291,107280.0,107270.0,1.4359563]
[1748461029766,0.47785291,107280.0,107270.0,1.4409563]
[1748461029967,0.47785291,107280.0,107270.0,1.0801563]
[1748461030161,0.00037291,107280.0,107270.0,1.5341763]
[1748461030362,0.00037291,107280.0,107270.0,1.58063345]
[1748461030557,0.00037291,107280.0,107270.0,1.58263345]
[1748461030776,0.47741952,107290.0,107280.0,0.39826745]
[1748461030965,0.00013952,107290.0,107280.0,0.8149307]
[1748461031168,0.00013952,107290.0,107280.0,0.7949307]
[1748461031367,0.00013952,107290.0,107280.0,1.0349307]
[1748461031974,0.36093952,107290.0,107280.0,0.85514625]
[1748461032169,0.36093952,107290.0,107280.0,1.0670307]
[1748461032473,0.36093952,107290.0,107280.0,1.02666745]
[1748461032775,0.00013952,107290.0,107280.0,1.06996405]
[1748461032971,0.00013952,107290.0,107280.0,1.07396405]
[1748461033164,0.00013952,107290.0,107280.0,1.16717205]
[1748461033563,0.00013952,107290.0,107280.0,1.5887599]
[1748461033564,2e-08,107290.0,107280.0,1.5887599]
[1748461033768,0.0001043,107290.0,107280.0,2.03321415]
[1748461034168,1e-07,107290.0,107280.0,2.03321415]
[1748461035079,1e-07,107290.0,107280.0,2.0459343]
[1748461035278,1e-07,107290.0,107280.0,2.04593528]
[1748461035467,1e-07,107290.0,107280.0,1.60944525]
[1748461035779,1e-07,107290.0,107280.0,2.04594181]
[1748461036077,1e-07,107290.0,107280.0,2.16094181]
[1748461036571,1e-07,107290.0,107280.0,1.73717291]
[1748461036764,0.59387552,107300.0,107290.0,0.1863656]
[1748461036970,0.62587552,107300.0,107290.0,0.55149326]
[1748461037174,0.65667552,107300.0,107290.0,0.4763656]
[1748461037367,0.97667552,107300.0,107290.0,0.4763656]
[1748461037569,0.97667552,107300.0,107290.0,0.48944045]
[1748461037767,0.97667552,107300.0,107290.0,0.55144045]
[1748461037963,0.97667552,107300.0,107290.0,0.55132045]
[1748461038365,0.97667552,107300.0,107290.0,0.55432583]
[1748461038570,0.97667552,107300.0,107290.0,0.55444582]
[1748461039272,0.97667552,107300.0,107290.0,0.49444582]
[1748461039582,0.97667552,107300.0,107290.0,0.49445919]
[1748461039880,0.97667552,107300.0,107290.0,0.56167474]
[1748461040368,0.97667552,107300.0,107290.0,0.49897474]
[1748461040565,1.18855997,107300.0,107290.0,0.31262341]
[1748461040878,1.23855997,107300.0,107290.0,0.26898871]
[1748461041076,1.02667552,107300.0,107290.0,0.26898871]